Cogmind - Beta 17.1 @@@ ROGUE MODE // 2026.09.12 @ 03:30:09 Player: mischief_2000 Result: Escaped! Performance ------------- Evolutions (9) 4500 Regions Visited (23) 4600 Robots Destroyed (416) 2080 Value Destroyed (19954) 19954 Prototype IDs (73) 1460 Alien Tech Used (3) 600 Bonus (19052) 19052 TOTAL SCORE: 52246 Bonus ------- Triggered High Security 500 High Alert Combat Kills 7502 Follower Combat Kills 844 Entered Garrisons 200 Entered DSFs 500 Met Warlord at Base 500 MAIN.C Attacked Warlord 500 Warlord Defense Kills 3684 Met Warlord at Research 2000 Scanned by Researcher 500 Win 3000 Friendly Fire -678 Cogmind --------- Core Integrity 705/1600 Matter 117/300 Energy 30/100 System Corruption 25% Temperature Cool (5) Movement Hovering (51) Location To Epsilon Eridani Parts ------- > --- POWER (2) -------- (None) > --- PROPULSION (5) --- Hovering Antigrav-Gravjet Exoskeleton > --- UTILITY (13) ----- Armored Scrap Engine Experimental Power Amplifier Large Storage Unit Gravity Neutralizer Advanced Signal Interpreter Experimental Targeting Computer > --- WEAPON (5) ------- (None) > --- INVENTORY (15) --- Advanced Cryofiber Web Improved Coolant Injector Medium Storage Unit Matter Compressor (157) Long-range Sensor Array Seismic Detector Graphene Brace Advanced Shield Generator Advanced Point Defense System Peak State ------------ > --- POWER ------------ Particle-Quantum Reactor > --- PROPULSION ------- Hovering Antigrav-Gravjet Exoskeleton > --- UTILITY ---------- Armored Scrap Engine Experimental Power Amplifier Coolant Network High-capacity Storage Unit Spectral Analyzer Long-range Sensor Array Experimental Targeting Computer Experimental Reaction Control System Advanced Powered Armor Advanced Powered Armor Improved Force Field > --- WEAPON ----------- Heavy Tesla Rifle Point Singularity Launcher Hpw. Kinetic Linear Construct/C Hpw. Accelerated Hardcell Construct/G > --- INVENTORY -------- Coolant Network Improved Coolant Injector Improved Coolant Injector Experimental Matter Compressor Long-range Sensor Array Advanced Terrain Scanner Experimental Core Analyzer Advanced Kinecellerator Advanced Reaction Control System Advanced Powered Armor Advanced Powered Armor Graphene Brace Advanced Point Defense System Advanced Point Defense System Improved Hacking Suite Advanced Hacking Suite Advanced Hacking Suite Minesniffer Drone Bay Point Singularity Launcher [Rating: 227] Favorites ----------- Power Constructs Engine Heavy Deuterium Engine Power Core Micro Nuclear Core Reactor Constructs Propulsion Constructs Treads Improved Treads Leg Improved Carbon-fiber Leg Wheel Compact Wheel Hover Unit Constructs Flight Unit Improved VTOL Module Utility Armored Scrap Engine Device Armored Scrap Engine Storage High-capacity Storage Unit Processor Experimental Targeting Computer Hackware Hacking Suite Protection Advanced Powered Armor Weapon Constructs Energy Gun Heavy EM Shotgun Energy Cannon Constructs Ballistic Gun Constructs Ballistic Cannon Constructs Launcher Point Singularity Launcher Impact Weapon Makeshift Hammer Slashing Weapon Power Sword Piercing Weapon Kinetic Spear Special Melee Weapon Advanced Datajack Build | -11 -10 -10 -8 -7 -7 -7 -5 -5 -5 -5 -4 -4 -4 -4 -4 -3 -3 -3 -3 -2 -2 -1 -1 ------- Run | Yrd Mat Sub Mat Fac Sto Rec Fac Upp Upp Zhi Pro Fac Upp Upp War Pro Res DSF Gar Res Tes Acc Com Slots Evolved 18 | . . . 4 2 . . 4 . . . . 2 . . . . 2 . . 2 . 2 . Power 1 | . . . . . . . . . . . . 1 . . . . . . . . . . . Propulsion 3 | . . . 2 . . . 1 . . . . . . . . . . . . . . . . Utility 11 | . . . 1 2 . . 3 . . . . . . . . . 2 . . 1 . 2 . Weapon 3 | . . . 1 . . . . . . . . 1 . . . . . . . 1 . . . Parts Attached 204 | 9 10 12 24 8 25 3 19 1 1 2 . 7 1 2 6 1 . 12 8 17 14 13 9 Power 13 | 1 1 1 4 1 3 . 2 . . . . . . . . . . . . . . . . Engine 9 | 1 . 1 4 1 2 . . . . . . . . . . . . . . . . . . Core 4 | . 1 . . . 1 . 2 . . . . . . . . . . . . . . . . Reactor . | . . . . . . . . . . . . . . . . . . . . . . . . Propulsion 26 | 2 3 2 9 . 9 1 . . . . . . . . . . . . . . . . . Treads 14 | . 2 2 7 . 3 . . . . . . . . . . . . . . . . . . Leg 4 | 2 . . . . 2 . . . . . . . . . . . . . . . . . . Wheel 4 | . 1 . . . 2 1 . . . . . . . . . . . . . . . . . Hover 2 | . . . 1 . 1 . . . . . . . . . . . . . . . . . . Flight 2 | . . . 1 . 1 . . . . . . . . . . . . . . . . . . Utility 107 | 3 3 1 5 4 5 1 14 . 1 2 . 6 1 1 4 1 . 10 6 14 9 12 4 Device 46 | 2 1 . . 1 3 1 3 . 1 . . 2 1 . 2 1 . 4 2 7 6 6 3 Storage 14 | 1 2 . 2 . . . 1 . . 1 . 2 . . 1 . . 1 . 2 . 1 . Processor 17 | . . 1 . 1 . . 4 . . . . 1 . . . . . 3 . 4 1 2 . Hackware 10 | . . . . 2 . . 2 . . . . 1 . . . . . . . 1 1 3 . Protection 20 | . . . 3 . 2 . 4 . . 1 . . . 1 1 . . 2 4 . 1 . 1 Artifact . | . . . . . . . . . . . . . . . . . . . . . . . . Weapon 58 | 3 3 8 6 3 8 1 3 1 . . . 1 . 1 2 . . 2 2 3 5 1 5 Energy Gun 15 | 1 1 . 5 1 3 . 1 . . . . . . 1 . . . 1 . . 1 . . Energy Cannon 6 | . . 4 . . . . . . . . . . . . . . . . . 1 1 . . Ballistic Gun 5 | 2 . . . . 2 . . . . . . . . . . . . . 1 . . . . Ballistic Cannon 10 | . 2 1 . 1 1 1 . . . . . . . . . . . . . 1 . . 3 Launcher 14 | . . 3 . 1 1 . 1 . . . . 1 . . 2 . . 1 1 1 . 1 1 Special Weapon . | . . . . . . . . . . . . . . . . . . . . . . . . Impact Weapon 5 | . . . 1 . 1 . . 1 . . . . . . . . . . . . 2 . . Slashing Weapon 1 | . . . . . . . 1 . . . . . . . . . . . . . . . . Piercing Weapon 1 | . . . . . . . . . . . . . . . . . . . . . . . 1 Special Melee Weapon 1 | . . . . . . . . . . . . . . . . . . . . . 1 . . Unidentified Prototypes 47 | . . . 4 . 9 1 1 1 . 2 1 1 . . 1 . . 4 . 10 9 1 2 Parts Lost 51 | . . 5 . . 5 . 10 . . . 1 2 . . 1 1 . 4 4 . . . 18 Power 7 | . . 1 . . 1 . 2 . . . . . . . . . . 1 . . . . 2 Propulsion 5 | . . 1 . . 2 . 1 . . . . . . . . . . . . . . . 1 Utility 20 | . . 1 . . 1 . 3 . . . . 2 . . 1 1 . 2 1 . . . 8 Weapon 19 | . . 2 . . 1 . 4 . . . 1 . . . . . . 1 3 . . . 7 Highest Loss Streak 15 | . . 5 . . 3 . 3 . . . 1 1 . . 1 1 . 2 2 . . . 15 To Critical Strikes 1 | . . . . . . . . . . . . . . . . . . . . . . . 1 Average Backups 15 | 5 15 16 18 22 21 16 14 9 9 9 8 8 8 9 11 14 16 15 17 18 18 18 13 Power . | . 1 . . 1 2 1 . . . . . . . . . . . . . . . . . Propulsion 2 | 3 5 5 5 7 7 4 . . . . . . . . . . . . . . . . . Utility 10 | . 4 4 10 9 7 8 11 8 8 7 7 7 7 8 9 11 13 12 17 18 17 17 11 Weapon 2 | 1 4 6 3 3 4 3 1 1 1 1 . . 1 1 2 3 3 2 . . 1 1 2 Tool/Special . | . . . . . . . . . . . . . . . . . . . . . . . . Unused Backups 63 | . 5 3 4 2 4 7 5 . 1 1 . 1 1 . 1 . . 2 2 14 . 4 6 Power 1 | . . 1 . . . . . . . . . . . . . . . . . . . . . Propulsion 11 | . 1 1 . 1 1 6 1 . . . . . . . . . . . . . . . . Utility 43 | . 3 . 2 1 1 . 3 . 1 1 . 1 1 . 1 . . 2 2 14 . 4 6 Weapon 7 | . . 1 2 . 2 1 1 . . . . . . . . . . . . . . . . Tool/Special 1 | . 1 . . . . . . . . . . . . . . . . . . . . . . Average Slot Usage (%) 71 | . 100 97 88 90 91 72 56 61 60 63 60 60 63 62 63 56 52 60 58 60 62 66 62 Engine 3 | . 2 12 9 7 6 6 2 . . . . 4 5 5 5 . . . . . . . . Core 1 | . 11 1 . . . . 1 5 5 5 5 1 . . . . . . . . . . . Reactor 1 | . . . . . . . . . . . . . . . . 5 4 4 4 4 4 4 3 Treads 8 | . 8 26 34 30 26 7 3 . . . . . . . . 4 4 1 1 . . . . Leg 2 | . 11 . . . 1 8 . 2 5 5 5 4 . . . . . . . 1 4 . . Wheel 1 | . 8 1 . . 1 2 . . . . . . . 1 3 . . . . . . . . Device 12 | . 14 1 . . 9 18 14 5 7 10 11 8 10 10 10 14 14 14 14 16 18 16 19 Storage 6 | . 14 14 9 7 7 7 5 5 5 5 5 5 9 10 10 5 4 4 4 4 4 4 4 Processor 6 | . . 10 . . . . 3 15 11 6 5 8 5 5 5 5 4 11 9 12 10 14 14 Hackware 3 | . . . . 13 3 . 5 11 11 11 11 11 10 9 5 5 4 4 4 3 . . . Protection 3 | . . . 8 7 6 3 1 . . 3 2 . . . 5 4 4 2 3 1 3 7 3 Energy Gun 4 | . 3 . 23 18 13 3 3 . . . . 2 . . . 5 4 2 1 3 2 . . Energy Cannon 2 | . . 14 2 . . . . . . . . 2 . . . 4 4 5 3 4 6 8 4 Ballistic Cannon 5 | . 21 13 . . 6 10 1 . . . . 1 9 10 9 . . . 3 1 1 . 2 Launcher 1 | . . . . 3 . . 1 . . . 1 . . . 2 . . 2 . 2 4 6 4 Peak Build Rating 227 | 7 12 16 44 51 62 68 99 73 74 77 82 101 108 110 137 129 127 161 170 203 212 227 213 Average Rating 101 | 6 10 14 32 49 52 55 84 69 71 75 72 90 104 107 116 126 127 141 146 171 194 216 198 On Entrance 91 | . 7 11 16 44 50 62 56 64 70 74 77 71 101 106 108 125 127 127 161 130 203 212 197 Avg Prop Armor Cover (%) 10 | . 11 11 . . 6 10 19 . . . . . . . . . . . . . . . . Naked Turns . | . . . . . . . . . . . . . . . . . . . . . . . . Heaviest Build 178 | 15 52 60 127 125 131 127 128 23 24 27 31 55 56 63 101 91 89 107 124 132 152 178 136 Greatest Support 235 | 20 40 43 88 85 94 57 57 28 28 28 28 61 65 65 81 81 81 164 234 222 235 235 132 Greatest Overweight (x) 24 | . 3 3 24 1 13 7 7 1 . . 1 1 . . 1 1 1 1 . . . 1 1 Average Overweight (x) . | . 1 1 . 1 1 3 . . . . . . . . . 1 1 . . . . . . Largest Inventory Capacity 25 | 8 20 20 25 25 25 25 25 10 10 10 10 10 10 10 20 20 20 20 20 20 20 20 15 Average Capacity 18 | 7 16 20 20 25 25 25 20 10 10 10 10 10 10 10 15 20 20 20 20 20 20 19 15 Most Carried 25 | 8 20 20 25 25 25 25 23 10 10 10 10 10 10 10 18 18 18 20 20 20 20 20 15 Average Carried 17 | 5 15 18 20 24 24 20 15 10 9 9 9 9 9 10 13 16 18 17 19 19 19 19 13 Final Capacity 25 | 8 20 20 25 25 25 25 10 10 10 10 10 10 10 10 20 20 20 20 20 20 20 15 15 Final Carried 25 | 8 20 19 25 24 25 19 10 10 10 10 9 10 10 10 17 18 18 20 20 20 20 14 9 Scrap Engine Consumption 286 | . . . . . . 24 24 2 1 6 . 26 1 2 18 . . 36 17 56 10 30 33 Constructs Created 23 | . . . . . . 3 1 . . . . 4 . . 1 . . 1 1 9 . 1 2 Constructs Modified 95 | . . . . . . 7 6 2 . . . 6 2 1 7 3 . 10 8 12 4 15 12 Class Distribution -------------------- 34% | Construct 17% | Mutant 13% | Tank 8% | Hacker-Mutant 6% | Commander-Construct 4% | Hacker-Construct Dominant Class ---------------- Mutant | -10/Materials Mutant | -10/Subcaves Tank | -8/Materials Hacker-Tank | -7/Factory Tank | -7/Storage Commander-Construct | -7/Recycling Commander-Assassin | -5/Factory Hacker-Mutant | -5/Upper Caves Hacker-Mutant | -5/Upper Caves Hacker-Mutant | -5/Zhirov Hacker-Mutant | -4/Proximity Caves Hacker-Assassin | -4/Factory Hacker-Construct | -4/Upper Caves Hacker-Construct | -4/Upper Caves Commander-Construct | -4/Warlord Construct | -3/Proximity Caves Construct | -3/Research Construct | -3/DSF Construct | -3/Garrison Construct | -2/Research Construct | -2/Testing Construct | -1/Access Construct | -1/Command Resources | -11 -10 -10 -8 -7 -7 -7 -5 -5 -5 -5 -4 -4 -4 -4 -4 -3 -3 -3 -3 -2 -2 -1 -1 ----------- Run | Yrd Mat Sub Mat Fac Sto Rec Fac Upp Upp Zhi Pro Fac Upp Upp War Pro Res DSF Gar Res Tes Acc Com Matter Collected 14425 | 338 661 212 439 300 833 611 764 . 131 221 . 741 97 116 652 103 . 597 1004 666 618 2113 3208 Remotely 1039 | . . . . . . . . . . . . . . . . . . . . . . 90 949 Salvage Created 16041 | 254 597 361 1084 410 1621 270 739 . 131 469 12 765 115 61 907 124 . 852 1175 254 303 2284 3253 Parts 644 | 32 36 21 63 14 75 13 45 . 2 2 . 21 9 2 22 6 . 28 33 9 9 89 113 Haulers Intercepted 12 | . 1 . 4 . 1 . . . . . . 1 . . . . . . . 1 2 2 . Recyclers Shooed 7 | . 3 . 1 . . . 1 . . . . 1 . . . . . . . . . 1 . Parts Field Recycled . | . . . . . . . . . . . . . . . . . . . . . . . . Retrieved Matter . | . . . . . . . . . . . . . . . . . . . . . . . . Parts Self-Destructed 16 | . . 8 . . . . . . . . . . 4 1 . 3 . . . . . . . Prevented 4 | . . . . . . . . . 2 . . . 2 . . . . . . . . . . Parts Restored . | . . . . . . . . . . . . . . . . . . . . . . . . Kills | -11 -10 -10 -8 -7 -7 -7 -5 -5 -5 -5 -4 -4 -4 -4 -4 -3 -3 -3 -3 -2 -2 -1 -1 ------- Run | Yrd Mat Sub Mat Fac Sto Rec Fac Upp Upp Zhi Pro Fac Upp Upp War Pro Res DSF Gar Res Tes Acc Com Combat Hostiles Destroyed 289 | . 10 16 11 5 28 7 23 . 1 . 1 4 4 1 25 3 . 12 30 2 5 41 60 Melee 4 | . . . . . . . 4 . . . . . . . . . . . . . . . . Guns 28 | . 2 . 8 1 12 . 1 . . . . . . . . . . 1 . 2 . . 1 Cannons 97 | . 8 5 . 1 6 7 . . . . . 3 . 1 7 3 . 6 13 . 3 14 20 AOE 135 | . . 10 3 3 8 . 18 . . . 1 1 4 . 18 . . 4 15 . 1 25 24 Classes Destroyed 28 | 3 6 3 1 1 3 . . . . . . . . . 5 . . 2 1 . . . 3 Worker 31 | 1 1 . 4 1 1 . 4 . . . . 4 . . . . . . . . . 12 3 Builder 22 | . 1 . 2 . 5 . 3 . . . . . . . . . . . . . 1 10 . Tunneler 11 | 9 1 . 1 . . . . . . . . . . . . . . . . . . . . Hauler 12 | . 1 . 4 . 1 . . . . . . 1 . . . . . . . 1 2 2 . Recycler 24 | 1 2 . 3 2 1 1 1 . . . . 3 . . . . . . . . . 7 3 Mechanic 4 | . . . . . 1 . 1 . . . . . . . . . . . . . . . 2 Operator 5 | . 1 . 1 . . . . . . . . 1 . . . . . . . 1 . . 1 Drone 1 | . . . . . . . . . . . . . . . . . . . 1 . . . . Watcher 15 | . 2 . 2 . 2 . 1 . . . . . . . . . . . . . 2 1 5 Swarmer 51 | . 3 . 4 3 4 . 4 . . . 1 . 4 . . 1 . . 4 . . 19 4 Saboteur 4 | . . . . . . . . . . . . . . . . . . . . . . . 4 Grunt 86 | . 7 . 6 1 13 . 9 . 1 . . . . . 5 . . . 15 . 1 10 18 Brawler 13 | . . . . . 3 . . . . . . . . . 5 . . . 1 . . . 4 Duelist 4 | . . . . . 2 . . . . . . . . . 1 . . . 1 . . . . Protector 2 | . . . . . . . . . . . . . . . 1 . . . . . . . 1 Sentry 18 | . . . 1 . 3 2 . . . . . 2 . 1 . 1 . 1 4 . . . 3 Demolisher 2 | . . . . . . . . . . . . . . . 2 . . . . . . . . Specialist 6 | . . . . . . . . . . . . . . . . . . 4 . . . 2 . Hunter 24 | . . . . . 1 . 4 . . . . . . . 1 . . 6 3 . 2 2 5 Programmer 34 | . . . . 1 2 . 6 . . . . 2 . . 3 1 . . . 2 2 7 8 Heavy 2 | . . . . . . . . . . . . . . . . . . 1 . . . 1 . Behemoth 6 | . . . . . . . . . . . . . . . 2 . . . 1 . . . 3 Investigator 1 | . . . . . . . . . . . . . . . . . . . . . . . 1 Striker 4 | . . . . . . . . . . . . . . . 1 . . . . . . . 3 Executioner 9 | . . . . . . . . . . . . . . . 4 . . . . . . . 5 Alpha 7 2 | . . . . . . . . . . . . . . . . . . . . . . . 2 Cobbler 1 | . . 1 . . . . . . . . . . . . . . . . . . . . . Subdweller 21 | . . 16 . . . 5 . . . . . . . . . . . . . . . . . Packrat 1 | . . . . . . . . . 1 . . . . . . . . . . . . . . Thug 2 | . . . . . . . . . . . . . . . 1 . . . 1 . . . . Guerrilla 1 | . . 1 . . . . . . . . . . . . . . . . . . . . . Best Kill Streak 20 | 5 5 11 9 3 7 2 11 . 1 . 1 4 4 1 8 1 . 4 10 1 3 15 20 Combat Bots Only 18 | . 5 11 3 3 6 2 9 . 1 . 1 1 4 1 8 1 . 4 10 1 2 7 18 Max Kills in Single Turn 9 | 1 1 8 3 2 3 1 3 . 1 . 1 1 4 1 4 1 . 2 6 1 2 9 4 Gunslinging . | . . . . . . . . . . . . . . . . . . . . . . . . Exploded 7 | . . 7 1 2 2 . 2 . . . 1 1 4 . 4 . . 2 6 . 1 4 4 Melee 1 | . . . . . . . 1 . . . . . . . . . . . . . . . . Uniques/NPCs Destroyed . | . . . . . . . . . . . . . . . . . . . . . . . . Combat | -11 -10 -10 -8 -7 -7 -7 -5 -5 -5 -5 -4 -4 -4 -4 -4 -3 -3 -3 -3 -2 -2 -1 -1 -------- Run | Yrd Mat Sub Mat Fac Sto Rec Fac Upp Upp Zhi Pro Fac Upp Upp War Pro Res DSF Gar Res Tes Acc Com Hostile Shots Fired 1943 | . 38 47 22 22 266 42 200 . 1 . 52 32 29 10 62 36 . 111 161 19 51 140 602 Missed 711 | . 12 11 7 6 85 14 53 . 1 . 23 10 11 2 22 14 . 33 70 6 23 58 250 Hits 1232 | . 26 36 15 16 181 28 147 . . . 29 22 18 8 40 22 . 78 91 13 28 82 352 Melee 15 | . . . . . 13 . 1 . . . 1 . . . . . . . . . . . . Projectile 1217 | . 26 36 15 16 168 28 146 . . . 28 22 18 8 40 22 . 78 91 13 28 82 352 AOE 3 | . . 3 . . . . . . . . . . . . . . . . . . . . . Critical Strikes 51 | . 1 1 1 1 5 . 4 . . . . 1 . 1 . . . 3 6 1 . 8 18 Actively Blocked 5 | . . . . . . . . . . . . . . . . . . . . . . . 5 Part Disruptions 3 | . . . . . . . 1 . . . . . . . . . . 1 . . . . 1 Damage Taken 26679 | . 314 1106 283 230 2888 341 3508 . . . 693 589 149 98 1198 296 . 2162 2241 293 746 1521 8023 Core 2461 | . 58 178 15 . 174 26 385 . . . 156 40 18 . 220 . . 203 50 18 25 50 845 Absorbed by Shields 2991 | . . . . . . . . . . . . . 156 101 346 304 . 198 . 38 12 989 847 Redirected to Shielding 99 | . . . . . . . . . . . 99 . . . . . . . . . . . . Regen/Repaired (Parts) 7043 | . . . 153 . . . 866 72 . 100 . 555 157 131 165 206 . 1288 889 138 288 469 1566 Core Remaining (%) 67 | 100 . 5 97 . . 71 . . . . 41 . . . . 75 . . 80 . 97 . 44 Volleys Fired 828 | 16 47 37 39 13 86 28 48 . . . 5 32 2 7 34 9 . 29 61 37 65 81 152 Largest 4 | 2 2 2 3 3 3 3 2 . . . 1 2 3 2 3 2 . 3 3 4 3 4 4 Hottest 375 | 70 70 120 156 153 180 150 116 . . . 36 200 280 200 243 208 . 288 375 237 201 302 283 Shots Fired 1483 | 32 94 54 94 35 191 70 65 . . . 6 41 5 14 68 18 . 52 94 67 115 125 243 Gun 453 | 32 34 . 82 28 113 15 12 . . . . 9 . . . 9 . 17 13 51 16 . 22 Cannon 841 | . 60 49 10 5 61 55 10 . . . . 32 4 14 43 9 . 24 66 15 95 104 185 Launcher 189 | . . 5 2 2 17 . 43 . . . 6 . 1 . 25 . . 11 15 1 4 21 36 Special . | . . . . . . . . . . . . . . . . . . . . . . . . Kinetic 609 | 16 77 32 1 5 61 55 1 . . . . 27 4 14 43 9 . 23 43 13 65 30 90 Thermal 208 | 16 17 10 . 5 42 15 6 . . . . . . . . . . 1 20 37 18 9 12 Explosive 143 | . . 5 2 . 6 . 43 . . . 6 . . . 21 . . 7 11 1 4 13 24 Electromagnetic 490 | . . 7 91 25 82 . 15 . . . . 14 1 . . . . 5 16 16 28 73 117 Entropic 33 | . . . . . . . . . . . . . . . 4 9 . 16 4 . . . . Robot Hit Streak 25 | 5 5 14 8 6 15 4 13 . . . 2 6 1 2 11 17 . 15 25 15 14 16 19 Robot Miss Streak 6 | 3 5 4 4 4 4 5 4 . . . 1 4 5 2 6 2 . 2 6 3 3 5 5 Penetration Max 1 | . . . . . . . . . . . . . . . . . . 1 . . . . 1 Secondary Targets 3 | . . . 1 . 1 . . . . . . . . . . . . . . 1 . . . Max Gunslinging Chain 1 | . . . 1 . 1 . . . . . . . . . . . . . . 1 . . . Capacitor 20 | . . . . . . . . . . . . . . . . . . . . . . . 20 Shots Hit Robots 891 | 15 49 31 60 23 130 35 52 . 2 14 3 22 1 4 43 12 . 42 54 31 36 75 157 Core Hits 768 | 11 25 29 48 17 75 11 65 . . 3 8 8 8 1 82 5 . 44 59 9 15 107 138 Critical Kills 7 | . . . . . . . 2 . . . . . . . . . . . 1 . 1 2 1 Critical Parts Destroyed 6 | . . 2 . . . . 2 . . 1 . . . . . 1 . . . . . . . Critical Strikes 35 | 1 2 2 . 1 3 2 5 . . 2 . . . . 2 1 . . 1 . 5 3 5 Burn 5 | 1 1 . . . 3 . . . . . . . . . . . . . . . . . . Meltdown 4 | . . . . . . . . . . . . . . . . . . . 1 . 1 2 . Destroy 3 | . . 2 . . . . . . . . . . . . . . . . . . . . 1 Blast 12 | . 1 . . 1 . 2 . . . . . . . . 2 . . . . . 4 1 1 Corrupt 1 | . . . . . . . . . . . . . . . . . . . . . . . 1 Smash 5 | . . . . . . . 4 . . 1 . . . . . . . . . . . . . Sever 2 | . . . . . . . 1 . . 1 . . . . . . . . . . . . . Impale 2 | . . . . . . . . . . . . . . . . . . . . . . . 2 Detonate 1 | . . . . . . . . . . . . . . . . 1 . . . . . . . Melee Attacks 73 | . . . 1 . 1 . 38 3 3 15 6 2 . . 1 . . . . . . . 3 Impact 39 | . . . 1 . 1 . 20 3 3 4 6 1 . . . . . . . . . . . Slashing 31 | . . . . . . . 18 . . 11 . 1 . . 1 . . . . . . . . Piercing 3 | . . . . . . . . . . . . . . . . . . . . . . . 3 Sneak Attacks 6 | . . . . . . . 2 . 1 . . . . . 1 . . . . . . . 2 Combat Hostiles . | . . . . . . . . . . . . . . . . . . . . . . . . Follow-up Attacks 5 | . . . . . . . 2 . . 3 . . . . . . . . . . . . . Damage Inflicted 72567 | 196 780 1673 1334 570 4691 932 4641 . 131 1214 385 1883 146 222 9026 682 . 3786 8726 1102 1963 9986 18498 Guns 6118 | 196 228 . 1020 325 1775 139 236 . . . . 130 . . . 163 . 341 198 755 6 . 606 Cannons 24793 | . 552 698 44 106 1197 793 32 . . . . 1405 . 222 1463 446 . 1342 2666 347 1251 3827 8402 Explosions 39116 | . . 975 261 139 1719 . 3525 . . . 385 348 146 . 7494 73 . 2103 5862 . 692 6159 9235 Melee 2517 | . . . . . . . 848 . 131 1214 . . . . 69 . . . . . . . 255 Ramming 23 | . . . 9 . . . . . . . . . . . . . . . . . 14 . . Kinetic 16182 | 108 679 282 . 106 1197 793 . . . . . 985 . 222 1463 446 . 1272 1375 253 814 1872 4315 Thermal 7517 | 88 101 280 158 81 1233 139 601 . . . . 348 . . . 73 . 455 351 750 494 1340 1025 Explosive 23617 | . . 975 103 . 534 . 3100 . . . 385 . . . 4359 . . 1178 1681 . 612 4401 6289 Electromagnetic 14917 | . . 136 1064 383 1727 . 92 . . . . 550 146 . . . . 566 1138 99 29 2373 6614 Impact 764 | . . . . . . . 265 . 131 368 . . . . . . . . . . . . . Slashing 1498 | . . . . . . . 583 . . 846 . . . . 69 . . . . . . . . Piercing 255 | . . . . . . . . . . . . . . . . . . . . . . . 255 Entropic 7794 | . . . . . . . . . . . . . . . 3135 163 . 315 4181 . . . . Highest Corruption 25 | . . . 4 2 13 13 11 11 11 11 11 4 4 4 4 . . 6 14 2 2 15 25 Average Corruption 8 | . . . 4 1 9 13 6 11 11 11 11 3 4 4 4 . . 4 12 1 2 8 17 Corruption Purged . | . . . . . . . . . . . . . . . . . . . . . . . . Corruption Blocked . | . . . . . . . . . . . . . . . . . . . . . . . . Effects 359 | . . . 5 . 48 57 24 11 8 12 12 10 5 6 . . . 11 35 16 6 28 65 Message Errors 80 | . . . 1 . 10 15 8 2 2 4 1 3 1 . . . . 2 11 4 2 2 12 Matter Fused 79 | . . . 1 . 3 14 8 3 2 2 5 2 2 2 . . . 4 7 2 1 11 10 Heat Flow Errors 52 | . . . 2 . 7 8 2 3 . 4 . 3 1 . . . . 3 6 1 . 4 8 Energy Discharges 35 | . . . . . 7 9 2 1 1 . 1 . 1 1 . . . . 1 . 2 3 6 Parts Rejected 8 | . . . . . . . 1 . . . . . . . . . . . 2 1 . 1 3 Parts Fused 6 | . . . . . 1 1 . . . . 1 . . . . . . . 1 . 1 1 . Data Loss (minor) 41 | . . . 1 . 8 4 1 2 3 . 1 2 . . . . . . 3 5 . 2 9 Data Loss (major) 15 | . . . . . 3 1 1 . . . . . . 2 . . . 1 2 2 . 1 2 Misfires 9 | . . . . . 1 3 . . . . 1 . . . . . . . . 1 . 1 2 Alerts 7 | . . . . . 1 2 . . . 2 . . . 1 . . . 1 . . . . . Misdirections 10 | . . . . . 1 . . . . . 2 . . . . . . . 1 . . . 6 Weapon Failures 17 | . . . . . 6 . 1 . . . . . . . . . . . 1 . . 2 7 Overload Shots . | . . . . . . . . . . . . . . . . . . . . . . . . Overflow Damage 5251 | . . . . . 149 4 339 . 75 530 47 462 . . 236 . . 19 503 14 159 1223 1491 Projectiles 1827 | . . . . . 52 4 . . . . . 231 . . 52 . . . 234 14 28 436 776 Explosions 2451 | . . . . . 97 . 131 . . . 47 231 . . 184 . . 19 269 . 131 787 555 Melee 973 | . . . . . . . 208 . 75 530 . . . . . . . . . . . . 160 Knockbacks 65 | . 4 1 . . 4 5 2 . . . . 8 . . 3 . . 4 5 3 5 10 11 Impact 3 | . . . . . . . 2 . . . . . . . . . . . . . 1 . . Kinetic 57 | . 4 1 . . 4 5 . . . . . 7 . . 3 . . 3 4 2 4 10 10 Secondary 5 | . . . . . . . . . . . . 1 . . . . . 1 1 1 . . 1 Self-Inflicted Damage 1819 | . . 31 38 . 289 . 305 . . . 35 86 . . 128 48 . 209 . 23 . 297 330 Shots 72 | . . 3 2 . 16 . 9 . . . 2 2 . . 2 1 . 13 . 1 . 14 7 Rammed 2 | . . . 1 . . . 1 . . . . . . . . . . . . . . . . Targets Rammed 3 | . . . 1 . . . 1 . . . . . . . . . . . . . 1 . . Kicked 1 | . . . . . . . . . . . . . . . . . . . . . 1 . . Crushed . | . . . . . . . . . . . . . . . . . . . . . . . . Highest Temperature 496 | 54 198 298 241 306 496 311 405 250 . 177 . 172 136 273 414 414 . 247 349 195 156 160 203 Average Temperature 99 | 21 42 129 77 147 144 93 165 101 . 71 . 55 71 118 128 149 . 62 97 89 87 81 80 Received Heat Transfer 3052 | . 174 433 126 9 810 45 321 . . . 147 27 18 16 58 24 . 78 404 27 36 32 267 Effects 17 | . . . . . 6 . 5 . . . . . . . 2 3 . 1 . . . . . Shutdowns 2 | . . . . . 1 . 1 . . . . . . . . . . . . . . . . Energy Bleed 4 | . . . . . 1 . 1 . . . . . . . 2 . . . . . . . . Interference 4 | . . . . . . . 1 . . . . . . . . 2 . 1 . . . . . Matter Decay 3 | . . . . . 1 . 2 . . . . . . . . . . . . . . . . Short Circuit 3 | . . . . . 2 . . . . . . . . . . 1 . . . . . . . Damage (minor) 1 | . . . . . 1 . . . . . . . . . . . . . . . . . . Siege Activations . | . . . . . . . . . . . . . . . . . . . . . . . . Martial Activations . | . . . . . . . . . . . . . . . . . . . . . . . . Shielding Activations . | . . . . . . . . . . . . . . . . . . . . . . . . Robots Disrupted 14 | . . . 2 1 . . . . . . . . . . . . . . . . 1 6 4 Combat Hostiles 11 | . . . . . . . . . . . . . . . . . . . . . 1 6 4 Robots Corrupted 25 | . . 1 . . 2 . . . 1 1 . 2 . . . . . 1 1 . . 1 15 Combat Hostiles 23 | . . 1 . . 2 . . . 1 1 . . . . . . . 1 1 . . 1 15 Parts Fried 92 | . . 1 5 2 11 . 1 . . 1 . 7 . . . . . 2 3 1 . 14 44 Impact Corruptions 12 | . . . . . . . 3 . 2 7 . . . . . . . . . . . . . Robots Melted 4 | . . . . . . . . . . . . . . . . . . . 1 . 1 2 . Combat Hostiles 3 | . . . . . . . . . . . . . . . . . . . 1 . 1 1 . Parts Melted 14 | . 1 1 . . 3 . . . . . . . . . . . . . 2 1 2 4 . Heat Transferred 7108 | 333 370 370 200 137 1726 222 575 . . . . 200 . . . 50 . 387 448 948 470 450 222 Parts Sabotaged 1 | . . . . . . . 1 . . . . . . . . . . . . . . . . Parts Stolen . | . . . . . . . . . . . . . . . . . . . . . . . . Parts Stripped . | . . . . . . . . . . . . . . . . . . . . . . . . Power Chain Reactions 26 | . . . 4 1 7 . . . . . . . 1 . . . . 5 . . 1 5 2 Alert | -11 -10 -10 -8 -7 -7 -7 -5 -5 -5 -5 -4 -4 -4 -4 -4 -3 -3 -3 -3 -2 -2 -1 -1 ------- Run | Yrd Mat Sub Mat Fac Sto Rec Fac Upp Upp Zhi Pro Fac Upp Upp War Pro Res DSF Gar Res Tes Acc Com Maximum Alert Level 5 | . . . 1 . 2 . 3 . . . . . . . . . . 1 5 3 2 5 5 Low Security (%) 44 | 100 100 . 62 100 49 100 36 . . . . 100 . . . . 100 31 . . . . . Level 1 12 | . . . 37 . 37 . 7 . . . . . . . . . . 68 8 . . 15 . Level 2 9 | . . . . . 13 . 19 . . . . . . . . . . . 11 . 100 7 . Level 3 15 | . . . . . . . 36 . . . . . . . . . . . 5 100 . 9 17 Level 4 11 | . . . . . . . . . . . . . . . . . . . 67 . . 56 21 Level 5 4 | . . . . . . . . . . . . . . . . . . . 6 . . 11 29 High Security 2 | . . . . . . . . . . . . . . . . . . . . . . . 31 Max Security . | . . . . . . . . . . . . . . . . . . . . . . . . Sterilizations 1 | . . . . . . . . . . . . . . . . . . 1 . . . . . Peak Influence 2564 | 15 119 . 251 76 438 149 960 . . . . 182 . . . . 13 397 1670 1033 604 1640 2564 Initial 1009 | . 6 . . 48 10 148 200 . . . . . . . . . 13 12 297 939 465 335 1009 Average 549 | 2 33 . 154 21 216 29 512 . . . . 56 . . . . 13 258 1226 940 538 1171 1644 Influence Increases 11625 | 55 326 . 529 142 924 191 1586 . 20 15 95 360 90 20 750 70 4 425 1433 410 388 1745 2047 Destroy 0b10 Robot/C 5560 | . 200 . 220 100 560 40 500 . 20 . 20 80 80 20 600 60 . 240 640 60 100 820 1200 Destroy 0b10 Robot/NC 705 | 55 45 . 85 20 55 10 55 . . 15 . 45 . . 15 . . 15 5 25 25 160 75 Destroy Leader 840 | . 46 . 52 20 116 . 102 . . . . 30 10 . . 10 . 40 40 22 26 126 200 Allied During Kill 214 | . . . . . . 8 63 . . . . . . . 120 . . . 20 3 . . . Successful Hack 169 | . 19 . 30 . 12 7 19 . . . . 24 . . . . 4 . 6 21 . 15 12 Select Force Hacks 90 | . . . . . . 90 . . . . . . . . . . . . . . . . . Disable Machine 630 | . 15 . 90 . 75 15 105 . . . . 120 . . . . . . 30 45 60 60 15 Anti-Garrison Action 150 | . . . . . . . . . . . . . . . . . . . 150 . . . . Destroy Structure 2237 | . 1 . 37 2 91 21 282 . . . . 46 . . . . . 130 362 69 177 519 500 Advance Influence 200 | . . . . . . . 200 . . . . . . . . . . . . . . . . Partial Spotted 60 | . . . . . . . 30 . . . . . . . . . . . . 15 . . 15 Lose Combat Pursuer 570 | . . . 15 . 15 . 30 . . . 75 15 . . 15 . . . 180 150 . 45 30 Active Sensor Use 200 | . . . . . . . 200 . . . . . . . . . . . . . . . . Influence Decreases 9091 | 45 267 69 422 226 565 573 684 485 200 252 95 205 178 87 178 622 7 45 160 1251 658 726 1091 Entered New Map 3639 | . 4 34 . 59 13 234 . 335 80 237 . . 58 13 . 572 7 5 100 731 364 224 569 Time Decay 4762 | 45 263 35 422 167 462 339 494 150 120 15 85 185 120 74 108 50 . . . 490 294 502 342 Lost Part 450 | . . . . . 50 . 100 . . . 10 20 . . 10 . . 40 40 . . . 180 Lost Ally 240 | . . . . . 40 . 90 . . . . . . . 60 . . . 20 30 . . . Squads Dispatched 70 | . 1 . 4 6 7 . 8 . . . 1 3 . . . . . 2 . 3 3 14 18 Investigation 9 | . . . 1 1 . . 4 . . . . . . . . . . . . 1 . 1 1 Extermination 13 | . . . . 1 3 . 1 . . . . 1 . . . . . . . . 1 4 2 Reinforcement 22 | . 1 . 3 1 2 . 1 . . . . 2 . . . . . 2 . 2 2 5 1 Assault 20 | . . . . . 2 . 2 . . . 1 . . . . . . . . . . 1 14 Garrison 6 | . . . . 3 . . . . . . . . . . . . . . . . . 3 . Intercept . | . . . . . . . . . . . . . . . . . . . . . . . . Searches Triggered . | . . . . . . . . . . . . . . . . . . . . . . . . Construction Impeded 6 | . . . 1 . . . 1 . . . . 1 . . . . . . . . 1 2 . Haulers Reinforced 5 | . . . . 1 1 . . . . . . . . . . . . . . 2 . 1 . Active Scanning Responses 2 | . . . . . . . 2 . . . . . . . . . . . . . . . . Cargo Convoy Interrupts 1 | . . . . . . . 1 . . . . . . . . . . . . . . . . Stealth | -11 -10 -10 -8 -7 -7 -7 -5 -5 -5 -5 -4 -4 -4 -4 -4 -3 -3 -3 -3 -2 -2 -1 -1 --------- Run | Yrd Mat Sub Mat Fac Sto Rec Fac Upp Upp Zhi Pro Fac Upp Upp War Pro Res DSF Gar Res Tes Acc Com Distress Signals 28 | . . . 1 . 2 1 3 . . . . . . . 2 . . . . 13 1 2 3 Communications Jammed . | . . . . . . . . . . . . . . . . . . . . . . . . Distress Signals . | . . . . . . . . . . . . . . . . . . . . . . . . Times Spotted 490 | . 16 17 14 5 44 10 37 . 3 . 13 8 9 1 60 6 . 14 43 27 11 55 97 Peak Tracking Total 19 | . 3 12 4 3 10 2 7 . 4 . 9 2 10 1 19 4 . 4 12 7 3 9 13 Tactical Retreats 23 | . . . 1 . 1 1 2 . . . 2 1 . . 1 . . . 6 4 . 2 2 Traps | -11 -10 -10 -8 -7 -7 -7 -5 -5 -5 -5 -4 -4 -4 -4 -4 -3 -3 -3 -3 -2 -2 -1 -1 ------- Run | Yrd Mat Sub Mat Fac Sto Rec Fac Upp Upp Zhi Pro Fac Upp Upp War Pro Res DSF Gar Res Tes Acc Com Traps Triggered 45 | . . 4 1 . 4 . 1 . . . . . . . . . . 1 3 . . 4 27 Indirectly 33 | . . . . . 3 . . . . . . . . . . . . 1 . . . 3 26 Trap Hack Attempts . | . . . . . . . . . . . . . . . . . . . . . . . . Triggered . | . . . . . . . . . . . . . . . . . . . . . . . . Disarmed . | . . . . . . . . . . . . . . . . . . . . . . . . Reprogrammed . | . . . . . . . . . . . . . . . . . . . . . . . . Reused . | . . . . . . . . . . . . . . . . . . . . . . . . Traps Extracted . | . . . . . . . . . . . . . . . . . . . . . . . . Installed . | . . . . . . . . . . . . . . . . . . . . . . . . Triggered . | . . . . . . . . . . . . . . . . . . . . . . . . Most Traps Carried 1 | . . 1 1 . . . . . . . . . . . . . . . . . . . . Machines | -11 -10 -10 -8 -7 -7 -7 -5 -5 -5 -5 -4 -4 -4 -4 -4 -3 -3 -3 -3 -2 -2 -1 -1 ---------- Run | Yrd Mat Sub Mat Fac Sto Rec Fac Upp Upp Zhi Pro Fac Upp Upp War Pro Res DSF Gar Res Tes Acc Com Machines Disabled 46 | . 1 . 6 . 5 1 7 1 . . . 8 . . 1 . . . 4 3 4 4 1 Max in Single Turn 5 | . 1 . 2 . 1 1 4 1 . . . 5 . . 1 . . . 1 1 1 1 1 Garrison Access 2 | . . . . . . . . . . . . . . . . . . . . 2 . . . Garrison Relay 2 | . . . . . . . . . . . . . . . . . . . 2 . . . . Energy Cycler 1 | . . . . . . . . . . . . . . . . . . . . . . 1 . Machines Repaired . | . . . . . . . . . . . . . . . . . . . . . . . . Machines Dismantled . | . . . . . . . . . . . . . . . . . . . . . . . . Machines Sabotaged . | . . . . . . . . . . . . . . . . . . . . . . . . Overloaded Fab Kills . | . . . . . . . . . . . . . . . . . . . . . . . . Hacking | -11 -10 -10 -8 -7 -7 -7 -5 -5 -5 -5 -4 -4 -4 -4 -4 -3 -3 -3 -3 -2 -2 -1 -1 --------- Run | Yrd Mat Sub Mat Fac Sto Rec Fac Upp Upp Zhi Pro Fac Upp Upp War Pro Res DSF Gar Res Tes Acc Com Machines Accessed 49 | . 5 . 5 1 2 6 5 1 . 4 . 3 . . 5 . 1 . 3 3 2 2 1 Terminals 25 | . 5 . 4 1 2 2 2 . . . . 2 . . . . 1 . 3 . 1 2 . Fabricators 2 | . . . . . . . 2 . . . . . . . . . . . . . . . . Repair Stations 3 | . . . 1 . . . . . . . . . . . . . . . . . 1 . 1 Recycling Units 5 | . . . . . . 3 1 . . . . 1 . . . . . . . . . . . Scanalyzers 1 | . . . . . . . . . . . . . . . . . . . . 1 . . . Garrison Access 2 | . . . . . . . . . . . . . . . . . . . . 2 . . . Total Hacks 115 | . 15 . 17 3 3 10 10 1 . 17 . 5 . . 10 . 1 . 7 6 3 4 3 Successful 64 | . 7 . 8 . 1 6 4 1 . 17 . 3 . . 10 . 1 . 2 2 . 1 1 Failed 51 | . 8 . 9 3 2 4 6 . . . . 2 . . . . . . 5 4 3 3 2 Catastrophic 20 | . 4 . 2 2 1 1 2 . . . . 2 . . . . . . 1 1 . 2 2 Database Lockouts . | . . . . . . . . . . . . . . . . . . . . . . . . Manual 44 | . 12 . 12 3 2 6 4 . . . . 2 . . . . . . . 1 . 1 1 Terminals 59 | . 15 . 12 3 3 5 3 . . . . 4 . . . . 1 . 7 . 2 4 . Fabricators 6 | . . . . . . . 6 . . . . . . . . . . . . . . . . Repair Stations 9 | . . . 5 . . . . . . . . . . . . . . . . . 1 . 3 Recycling Units 5 | . . . . . . 3 1 . . . . 1 . . . . . . . . . . . Scanalyzers 2 | . . . . . . . . . . . . . . . . . . . . 2 . . . Garrison Access 4 | . . . . . . . . . . . . . . . . . . . . 4 . . . Terminal Hacks 46 | . 5 . 2 . 1 3 1 1 . 17 . 2 . . 10 . 1 . 2 . . 1 . Record 11 | . . . . . . . . 1 . 5 . . . . 5 . . . . . . . . Part Schematic 8 | . 3 . 1 . . . . . . 4 . . . . . . . . . . . . . Robot Analysis 4 | . . . . . . . . . . 4 . . . . . . . . . . . . . Prototype ID Bank 10 | . 2 . . . . . . . . 4 . . . . 4 . . . . . . . . Open Door 2 | . . . . . . . . . . . . . . . 1 . . . 1 . . . . Open DSF 1 | . . . . . . . . . . . . . . . . . 1 . . . . . . Level Access Points 1 | . . . . . . . . . . . . 1 . . . . . . . . . . . Branch Access Points 5 | . . . 1 . . 1 1 . . . . 1 . . . . . . . . . 1 . Terminal Index 1 | . . . . . 1 . . . . . . . . . . . . . . . . . . Security Stations 1 | . . . . . . . . . . . . . . . . . . . 1 . . . . Release Object 2 | . . . . . . 2 . . . . . . . . . . . . . . . . . Fabricator Hacks 2 | . . . . . . . 2 . . . . . . . . . . . . . . . . Load Schematic 1 | . . . . . . . 1 . . . . . . . . . . . . . . . . Build 1 | . . . . . . . 1 . . . . . . . . . . . . . . . . Repair Station Hacks 5 | . . . 4 . . . . . . . . . . . . . . . . . . . 1 Scan Component 3 | . . . 2 . . . . . . . . . . . . . . . . . . . 1 Repair 2 | . . . 2 . . . . . . . . . . . . . . . . . . . . Recycling Unit Hacks 1 | . . . . . . . . . . . . 1 . . . . . . . . . . . Retrieve Components 1 | . . . . . . . . . . . . 1 . . . . . . . . . . . Scanalyzer 1 | . . . . . . . . . . . . . . . . . . . . 1 . . . Insert Component 1 | . . . . . . . . . . . . . . . . . . . . 1 . . . Garrison Access Hacks 1 | . . . . . . . . . . . . . . . . . . . . 1 . . . Seal Access 1 | . . . . . . . . . . . . . . . . . . . . 1 . . . Unauthorized Hacks 8 | . 2 . 2 . . 3 1 . . . . . . . . . . . . . . . . Terminals 4 | . 2 . 2 . . . . . . . . . . . . . . . . . . . . Botnet 3 | . 1 . 2 . . . . . . . . . . . . . . . . . . . . Operators 1 | . 1 . . . . . . . . . . . . . . . . . . . . . . Fabricators 1 | . . . . . . . 1 . . . . . . . . . . . . . . . . Recompile 1 | . . . . . . . 1 . . . . . . . . . . . . . . . . Repair Stations . | . . . . . . . . . . . . . . . . . . . . . . . . Recycling Units 3 | . . . . . . 3 . . . . . . . . . . . . . . . . . Tunnel 3 | . . . . . . 3 . . . . . . . . . . . . . . . . . Scanalyzers . | . . . . . . . . . . . . . . . . . . . . . . . . Garrison Access . | . . . . . . . . . . . . . . . . . . . . . . . . Data Cores Recovered 1 | . . . . . . . . . . . . 1 . . . . . . . . . . . Used . | . . . . . . . . . . . . . . . . . . . . . . . . Hacking Detections 32 | . 5 . 5 1 2 2 4 . . . . 2 . . . . 1 . 2 3 2 2 1 Full Trace Events 5 | . . . . 1 . 1 . . . . . . . . . . . . 1 1 . . 1 Feedback Events . | . . . . . . . . . . . . . . . . . . . . . . . . Feedback Blocked . | . . . . . . . . . . . . . . . . . . . . . . . . Robot Schematics Acquired . | . . . . . . . . . . . . . . . . . . . . . . . . Robots Built . | . . . . . . . . . . . . . . . . . . . . . . . . Authchips . | . . . . . . . . . . . . . . . . . . . . . . . . Time . | . . . . . . . . . . . . . . . . . . . . . . . . Total Robot Build Rating . | . . . . . . . . . . . . . . . . . . . . . . . . Part Schematics Acquired 11 | . 3 . 1 . . . . . . 4 . . . . . . . . . . 3 . . Parts Built 1 | . . . . . . . 1 . . . . . . . . . . . . . . . . Authchips . | . . . . . . . . . . . . . . . . . . . . . . . . Time 64 | . . . . . . . 64 . . . . . . . . . . . . . . . . Total Part Build Rating 8 | . . . . . . . 8 . . . . . . . . . . . . . . . . Part Studies Acquired . | . . . . . . . . . . . . . . . . . . . . . . . . Parts Repaired 2 | . . . 2 . . . . . . . . . . . . . . . . . . . . Time 85 | . . . 85 . . . . . . . . . . . . . . . . . . . . Parts Recycled . | . . . . . . . . . . . . . . . . . . . . . . . . Recycled Matter . | . . . . . . . . . . . . . . . . . . . . . . . . Retrieved Matter . | . . . . . . . . . . . . . . . . . . . . . . . . Retrieved Components 2 | . . . . . . . . . . . . 2 . . . . . . . . . . . Parts Scanalyzed 1 | . . . . . . . . . . . . . . . . . . . . 1 . . . Part Schematics Acquired . | . . . . . . . . . . . . . . . . . . . . . . . . Parts Damaged 1 | . . . . . . . . . . . . . . . . . . . . 1 . . . Bothacking | -11 -10 -10 -8 -7 -7 -7 -5 -5 -5 -5 -4 -4 -4 -4 -4 -3 -3 -3 -3 -2 -2 -1 -1 ------------ Run | Yrd Mat Sub Mat Fac Sto Rec Fac Upp Upp Zhi Pro Fac Upp Upp War Pro Res DSF Gar Res Tes Acc Com Used RIF Installer . | . . . . . . . . . . . . . . . . . . . . . . . . Robots Hacked . | . . . . . . . . . . . . . . . . . . . . . . . . Non-combat . | . . . . . . . . . . . . . . . . . . . . . . . . Combat . | . . . . . . . . . . . . . . . . . . . . . . . . Robot Hacks Applied . | . . . . . . . . . . . . . . . . . . . . . . . . Relay Couplers Released 12 | . . . . . . . . . . . . . . . . . . . 10 2 . . . Machine Destruction 12 | . . . . . . . . . . . . . . . . . . . 10 2 . . . Fabnet Peak Effective % . | . . . . . . . . . . . . . . . . . . . . . . . . Robots Rewired 11 | . . . . . . 6 . . . . . . . . 4 . . . 1 . . . . Allies Hacked . | . . . . . . . . . . . . . . . . . . . . . . . . Hacks Repelled . | . . . . . . . . . . . . . . . . . . . . . . . . Allies | -11 -10 -10 -8 -7 -7 -7 -5 -5 -5 -5 -4 -4 -4 -4 -4 -3 -3 -3 -3 -2 -2 -1 -1 -------- Run | Yrd Mat Sub Mat Fac Sto Rec Fac Upp Upp Zhi Pro Fac Upp Upp War Pro Res DSF Gar Res Tes Acc Com Total Allies 15 | . . . . . 2 6 . . . . . . . . 4 . . . 3 . . . . Largest Group 6 | . . . . . 2 6 6 . . . . . . . 4 . . . 1 1 . . . Highest-Rated Group 223 | . . . . . 62 109 109 . . . . . . . 223 . . . 116 116 . . . Highest-Rated Ally 116 | . . . . . 31 32 32 . . . . . . . 68 . . . 116 116 . . . Initial Warlord ECA Mod 11 | . . . . . . . . . . . . . . . . . . . 10 11 11 10 10 Total Orders 7 | . . . . . . 2 . . . . . . . . . . . . . 5 . . . FOLLOW 1 | . . . . . . 1 . . . . . . . . . . . . . . . . . PICKUP 1 | . . . . . . 1 . . . . . . . . . . . . . . . . . EXPLORE 3 | . . . . . . . . . . . . . . . . . . . . 3 . . . RETURN 2 | . . . . . . . . . . . . . . . . . . . . 2 . . . Ally Attacks 133 | . . . . . 6 17 34 . . . . . . . 47 . . . 17 12 . . . Total Damage 4998 | . . . . . 81 282 511 . . . . . . . 2519 . . . 779 826 . . . Kills 24 | . . . . . . 2 4 . . . . . . . 10 . . . 3 5 . . . Allies Corrupted 1 | . . . . . . . . . . . . . . . 1 . . . . . . . . Allies Melted . | . . . . . . . . . . . . . . . . . . . . . . . . Intel | -11 -10 -10 -8 -7 -7 -7 -5 -5 -5 -5 -4 -4 -4 -4 -4 -3 -3 -3 -3 -2 -2 -1 -1 ------- Run | Yrd Mat Sub Mat Fac Sto Rec Fac Upp Upp Zhi Pro Fac Upp Upp War Pro Res DSF Gar Res Tes Acc Com Active Infowar (turns) 12273 | 133 1170 117 . . . . 1168 302 250 348 327 724 252 307 1166 617 6 499 879 1287 640 1347 734 Optics 10047 | . . . . . . . 362 302 250 348 327 724 252 307 1166 617 6 499 879 1287 640 1347 734 Sensors 3014 | . . . . . . . . . . . . 342 . . . . . . . 1051 640 981 . A.S.S. 806 | . . . . . . . 806 . . . . . . . . . . . . . . . . Terrain 62 | . . . . . . . 62 . . . . . . . . . . . . . . . . Seismic 1931 | 133 1170 117 . . . . . . . . . . . . . . . . . . . 5 506 Jamming 162 | . . . . . . . 162 . . . . . . . . . . . . . . . . ECM 1 | . . . . . . . . . . . . . . . . . . . . . 1 . . Robot Analysis Total 4 | . . . . . . . . . . 4 . . . . . . . . . . . . . Derelict Logs Recovered 2 | . . . . . . . . . 1 . . . 1 . . . . . . . . . . Drone Launches 3 | . . . . . . . . . . . . . . . . . . . . 3 . . . Drone Recoveries 2 | . . . . . . . . . . . . . . . . . . . . 2 . . . Exploration | -11 -10 -10 -8 -7 -7 -7 -5 -5 -5 -5 -4 -4 -4 -4 -4 -3 -3 -3 -3 -2 -2 -1 -1 ------------- Run | Yrd Mat Sub Mat Fac Sto Rec Fac Upp Upp Zhi Pro Fac Upp Upp War Pro Res DSF Gar Res Tes Acc Com Turns Passed 18133 | 236 1170 970 1182 420 1283 1448 1312 302 250 348 327 724 252 307 1166 630 6 520 879 1287 640 1347 1127 Spaces Moved 12394 | 144 632 377 487 151 371 598 802 374 280 213 305 445 274 315 844 345 4 281 994 2230 475 651 802 Core 23 | 6 . . 2 . . . 15 . . . . . . . . . . . . . . . . Treads 2854 | . 3 317 485 151 279 327 542 . . . . . . . . 339 4 71 336 . . . . Legs 3296 | 138 264 . . . 38 36 156 162 280 213 305 356 . . . . . . . 852 475 21 . Wheels 1569 | . 365 60 . . 54 235 . . . . . . . 114 741 . . . . . . . . Hover 2660 | . . . . . . . 89 212 . . . 89 274 201 103 6 . 210 44 . . 630 802 Flight 1992 | . . . . . . . . . . . . . . . . . . . 614 1378 . . . Fastest Speed 40 | 50 120 145 156 241 170 110 65 60 86 86 86 86 86 81 81 171 171 65 43 40 43 59 51 Average Speed 106 | 117 146 224 178 241 244 161 114 77 86 86 98 137 86 84 112 171 171 91 44 42 86 139 74 Slowest Speed 1250 | 120 260 240 1250 241 610 400 400 130 86 86 151 151 86 86 171 171 171 171 65 43 89 167 137 Overloaded Moves 174 | . . . . . . . . . . . . . . . . . . . . 174 . . . Propulsion Burnouts . | . . . . . . . . . . . . . . . . . . . . . . . . Robots Hopped 25 | . . . . . . . . . . . . . . . . . . . 10 15 . . . Potential Cave-ins 13 | . . . . . . . . . . . . . . . . . . . 4 2 . . 7 Cave-ins Triggered 1 | . . . . . . . . . . . . . . . . . . . 1 . . . . Teleports 1 | . . . . . . . . . . . 1 . . . . . . . . . . . . Exploration Rate (%) 49 | 4 68 24 49 5 44 85 21 56 53 63 47 15 55 58 89 55 . 96 83 57 45 26 29 Regions Visited 23 Branch Regions 13 Pre-discovered Areas 7 | . . . . . . 3 . . . 3 . . 1 . . . . . . . . . . Known Exits Taken 8 | . . . . 1 . . 1 . . . . 1 . . . 1 1 . . 1 1 1 . Unknown Exits Taken 13 | 1 1 1 1 . 1 1 . 1 1 1 1 . 1 1 1 . . . . . . . . Scrap Searched 16 | . . 8 . . . . . 2 1 . . . 3 2 . . . . . . . . . Spaces Dug 76 | . . 1 . . . 2 13 2 1 . 6 5 . 2 . . . . 1 5 19 7 12 Terrain Destroyed 1603 | . . 24 39 1 97 21 211 2 1 . 56 27 12 6 203 20 . 94 230 18 88 222 231 Melee 23 | . . . . . . . 13 2 1 . 6 1 . . . . . . . . . . . Projectile 221 | . . 8 1 . 17 21 . . . . . 16 5 6 5 20 . 10 12 14 28 15 43 AOE 1359 | . . 16 38 1 80 . 198 . . . 50 10 7 . 198 . . 84 218 4 60 207 188 Terrain Rammed . | . . . . . . . . . . . . . . . . . . . . . . . . Walls Destroyed . | . . . . . . . . . . . . . . . . . . . . . . . . Machines Disabled . | . . . . . . . . . . . . . . . . . . . . . . . . Actions | -11 -10 -10 -8 -7 -7 -7 -5 -5 -5 -5 -4 -4 -4 -4 -4 -3 -3 -3 -3 -2 -2 -1 -1 --------- Run | Yrd Mat Sub Mat Fac Sto Rec Fac Upp Upp Zhi Pro Fac Upp Upp War Pro Res DSF Gar Res Tes Acc Com Total 15876 | 175 787 445 726 180 580 1035 1074 381 286 361 319 515 285 343 998 366 3 498 1326 2497 607 969 1120 Wait 1733 | . 56 . 121 . 29 298 133 2 . 128 . 10 2 16 77 6 . 137 253 155 23 192 95 Move 12330 | 143 631 376 486 150 370 597 801 373 279 212 304 444 273 314 843 344 3 280 975 2207 474 650 801 Hop 12 | . . . . . . . . . . . . . . . . . . . 5 7 . . . Pick Up 195 | 7 23 9 22 3 17 7 16 . 2 2 . 7 2 . 8 2 . 15 8 20 4 10 11 Fast Attach 119 | 7 3 2 11 . 18 1 6 2 . 3 . 4 . 3 1 1 . 5 6 20 16 3 7 Attach 85 | . 2 7 6 3 8 1 16 . 1 1 2 3 1 . 2 1 . 9 2 . 3 7 10 Detach 15 | . . . 1 . 1 . 2 . . . 1 1 . . 1 . . 1 . 4 . 1 2 Swap 95 | 2 7 5 10 8 20 2 1 . . . 1 1 3 . 5 2 . 7 4 5 . 8 4 Drop 272 | . 18 9 28 3 30 23 15 1 1 4 . 11 2 3 6 1 . 15 9 41 21 17 14 Fire 828 | 16 47 37 39 13 86 28 48 . . . 5 32 2 7 34 9 . 29 61 37 65 81 152 Melee 66 | . . . 1 . 1 . 35 3 3 11 6 2 . . 1 . . . . . . . 3 Ram 1 | . . . . . . . 1 . . . . . . . . . . . . . . . . Kick 1 | . . . . . . . . . . . . . . . . . . . . . 1 . . Crush 1 | . . . 1 . . . . . . . . . . . . . . . . . . . . Escape Stasis 6 | . . . . . . . . . . . . . . . . . . . 1 . . . 5 Rewire 117 | . . . . . . 78 . . . . . . . . 20 . . . 2 1 . . 16 Trap . | . . . . . . . . . . . . . . . . . . . . . . . . Miscellaneous . | . . . . . . . . . . . . . . . . . . . . . . . . Route ------- -11/Scrapyard -10/Materials (discovered 4 exits: [*Mat x2] / [*Min] / [*Sub]) -10/Subcaves -8/Materials -7/Factory (discovered 2 exits: [*Fac] / *Sto) -7/Storage -7/Recycling -5/Factory (discovered 2 exits: *Upp x2) -5/Upper Caves -5/Upper Caves -5/Zhirov -4/Proximity Caves -4/Factory (discovered 6 exits: Res x4 / *Upp x2) -4/Upper Caves -4/Upper Caves -4/Warlord -3/Proximity Caves -3/Research -3/DSF -3/Garrison (discovered 3 exits: *Res x3) -2/Research (discovered 5 exits: *Acc x3 / *Tes x2) -2/Testing -1/Access -1/Command To Epsilon Eridani History --------- Turn | Location | Event 4 | -11/Scrapyard | Discovered new exit (range 14) 237 | -11/Scrapyard | Entered Materials 319 | -10/Materials | Build established: Mutant 345 | -10/Materials | Discovered new exit (range 11) 505 | -10/Materials | Discovered new exit (range 15) 1067 | -10/Materials | Discovered new exit (range 16) 1384 | -10/Materials | Discovered new exit (range 10) 1407 | -10/Materials | Entered Subcaves 1408 | -10/Subcaves | Approached by a straggling Scientist 1494 | -10/Subcaves | Ambushed by swarm of Subdwellers 1496 | -10/Subcaves | Ambushed by Subdwellers from Twisted Machinery 1496 | -10/Subcaves | Ambushed by Subdwellers from Twisted Machinery 1496 | -10/Subcaves | Ambushed by Subdwellers from Twisted Machinery 1496 | -10/Subcaves | Ambushed by Subdwellers from Twisted Machinery 1496 | -10/Subcaves | Ambushed by Subdwellers from Twisted Machinery 1504 | -10/Subcaves | Core integrity fell below 50% 1537 | -10/Subcaves | Lost 5 allies 1540 | -10/Subcaves | Destroyed 11 combat bots 1556 | -10/Subcaves | Lost 5 parts (1p1n1u2w) 1979 | -10/Subcaves | A swath of the cavern ceiling suddenly collapsed 2322 | -10/Subcaves | Discovered new exit (range 9) 2336 | -10/Subcaves | Core integrity fell below 20% 2377 | -10/Subcaves | Entered Materials 2377 | -8/Materials | Evolved 4 slots: Propulsion x2, Utility x1, Weapon x1 2936 | -8/Materials | Repaired Corrupted Hacking Suite 2957 | -8/Materials | Build established: Tank 2969 | -8/Materials | Repaired Imp. Treads 3250 | -8/Materials | Met 7R-MNS 3292 | -8/Materials | Discovered new exit (range 16) 3339 | -8/Materials | Found Prototype Device 3559 | -8/Materials | Entered Factory 3559 | -7/Factory | Evolved 2 slots: Utility x2 3560 | -7/Factory | Caught up to 7R-MNS 3571 | -7/Factory | Garrison activated, responded to threat 3636 | -7/Factory | Discovered new exit (range 15) 3799 | -7/Factory | Discovered new exit (range 7) 3909 | -7/Factory | Build established: Hacker-Tank 3973 | -7/Factory | Identified exit to Storage 3979 | -7/Factory | Entered Storage 4540 | -7/Storage | Met a pair of Derelict thieves 4657 | -7/Storage | System corruption reached 10% 4727 | -7/Storage | Lost 3 parts (1p1n1u) 4787 | -7/Storage | Build established: Tank 5248 | -7/Storage | Used back door to open Recycling access 5248 | -7/Storage | Discovered new exit (range 5) 5262 | -7/Storage | Entered Recycling 5881 | -7/Recycling | Build established: Commander-Tank 5927 | -7/Recycling | Discovered new exit (range 15) 6021 | -7/Recycling | Entered Scraplab 6030 | -7/Recycling | Found Prototype Device 6030 | -7/Recycling | Identified Scrap Engine 6483 | -7/Recycling | Build established: Commander-Construct 6710 | -7/Recycling | Entered Factory 6710 | -5/Factory | Accompanied by 6 allies 6710 | -5/Factory | Evolved 4 slots: Propulsion x1, Utility x3 6712 | -5/Factory | Identified Active Sensor Suite 6844 | -5/Factory | Identified exit to Upper Caves 6854 | -5/Factory | Fabricated Hvy. Armored Exoskeleton? 7234 | -5/Factory | Build established: Commander-Assassin 7377 | -5/Factory | Lost 3 allies 7523 | -5/Factory | Lost 3 parts (1p1u1w) 7603 | -5/Factory | Destroyed 9 combat bots 7798 | -5/Factory | System corruption reached 10% 7892 | -5/Factory | Cargo convoy interrupted 7910 | -5/Factory | First assault squad dispatched 8022 | -5/Factory | Entered Upper Caves 8045 | -5/Upper Caves | Lost 3 parts (1n1u1w) 8128 | -5/Upper Caves | Spotted B-75 Beast 8265 | -5/Upper Caves | Found Alien Artifact 8265 | -5/Upper Caves | Identified Dimensional Node Initializer 8265 | -5/Upper Caves | Initialized slip node 8286 | -5/Upper Caves | Build established: Hacker-Mutant 8320 | -5/Upper Caves | Discovered new exit (range 6) 8324 | -5/Upper Caves | Entered another Upper Caves area 8446 | -5/Upper Caves | Learned Factory non-interactive machine intel 8561 | -5/Upper Caves | Discovered new exit (range 12) 8574 | -5/Upper Caves | Entered Zhirov 8574 | -5/Zhirov | Discovered new exit (range 3) 8634 | -5/Zhirov | Learned location of Quarantine (-3) 8634 | -5/Zhirov | Learned location of Testing (-2) 8634 | -5/Zhirov | Learned location of Command (-1) 8658 | -5/Zhirov | Found Alien Artifact 8658 | -5/Zhirov | Identified Integrated Dissipator 8658 | -5/Zhirov | Installed Integrated Dissipator, increased core heat dissipation (+20) 8673 | -5/Zhirov | Found Alien Artifact 8922 | -5/Zhirov | Entered Proximity Caves 8958 | -4/Proximity Caves | Attracted the attention of an 0b10 outpost 9096 | -4/Proximity Caves | Core integrity fell below 50% 9101 | -4/Proximity Caves | Identified Transdimensional Reconstructor 9101 | -4/Proximity Caves | Warped through subspace 9123 | -4/Proximity Caves | Spotted B-86 Titan 9242 | -4/Proximity Caves | Discovered new exit (range 5) 9249 | -4/Proximity Caves | Entered Factory 9249 | -4/Factory | Evolved 2 slots: Power x1, Weapon x1 9250 | -4/Factory | Loaded intel: 243 non-interactive machine locations 9306 | -4/Factory | Found Gamma Bomb Array 9334 | -4/Factory | Identified exit to Research 9654 | -4/Factory | Build established: Hacker-Assassin 9856 | -4/Factory | Identified exit to Upper Caves 9973 | -4/Factory | Entered Upper Caves 10086 | -4/Upper Caves | Build established: Hacker-Construct 10086 | -4/Upper Caves | Learned location of Armory (-3) 10175 | -4/Upper Caves | Discovered new exit (range 20) 10210 | -4/Upper Caves | Attracted the attention of an 0b10 checkpoint 10223 | -4/Upper Caves | Attracted the attention of an 0b10 base 10225 | -4/Upper Caves | Entered another Upper Caves area 10236 | -4/Upper Caves | Attracted the attention of an 0b10 checkpoint 10377 | -4/Upper Caves | Encountered a Warlord checkpoint 10513 | -4/Upper Caves | Discovered new exit (range 13) 10532 | -4/Upper Caves | Entered Warlord 10563 | -4/Warlord | System corruption cleaned by Quarantine Array 10627 | -4/Warlord | Learned Research trap positions 10627 | -4/Warlord | Learned Testing trap positions 10627 | -4/Warlord | Learned 4 Armory zone layouts 10627 | -4/Warlord | Learned 4 Research zone layouts 10628 | -4/Warlord | Learned Factory garrison access intel 10773 | -4/Warlord | Met Warlord 10798 | -4/Warlord | Warlord's base attacked by MAIN.C 10798 | -4/Warlord | Found Prototype Device 11008 | -4/Warlord | Found Prototype Launcher 11065 | -4/Warlord | Build established: Commander-Construct 11148 | -4/Warlord | Warlord forces counterattacked 11166 | -4/Warlord | Found Prototype Processor 11184 | -4/Warlord | Found Prototype Processor 11338 | -4/Warlord | Spotted Executioner 11345 | -4/Warlord | Spotted Executioner 11353 | -4/Warlord | Allies destroyed Executioner 11362 | -4/Warlord | Destroyed Executioner 11447 | -4/Warlord | Spotted Striker 11453 | -4/Warlord | Spotted Striker 11453 | -4/Warlord | Spotted Striker 11469 | -4/Warlord | Destroyed Striker 11473 | -4/Warlord | Warlord base infiltrated, sounded retreat 11517 | -4/Warlord | Spotted B-90 Cyclops 11518 | -4/Warlord | Spotted Executioner 11538 | -4/Warlord | Destroyed Executioner 11540 | -4/Warlord | Allies destroyed B-90 Cyclops 11543 | -4/Warlord | Spotted Executioner 11558 | -4/Warlord | Destroyed Executioner 11585 | -4/Warlord | Discovered new exit (range 20) 11598 | -4/Warlord | Spotted Executioner 11599 | -4/Warlord | Spotted B-86 Titan 11601 | -4/Warlord | Spotted B-90 Cyclops 11605 | -4/Warlord | Identified Vortex Catalyst Activator 11609 | -4/Warlord | Destroyed B-90 Cyclops 11617 | -4/Warlord | Destroyed B-86 Titan 11617 | -4/Warlord | Destroyed Executioner 11638 | -4/Warlord | Destroyed 8 combat bots 11640 | -4/Warlord | Lost 3 allies 11641 | -4/Warlord | Build established: Construct 11698 | -4/Warlord | Spotted Striker 11698 | -4/Warlord | Spotted Striker 11698 | -4/Warlord | Spotted Striker 11698 | -4/Warlord | Entered Proximity Caves 11741 | -3/Proximity Caves | Spotted B-86 Titan 11769 | -3/Proximity Caves | Attracted the attention of an 0b10 checkpoint 12280 | -3/Proximity Caves | Discovered exit to Research (range 14) 12328 | -3/Proximity Caves | Entered Research 12328 | -3/Research | Evolved 2 slots: Utility x2 12330 | -3/Research | Loaded intel: 84 trap records 12334 | -3/Research | Identified exit to DSF 12334 | -3/Research | Entered DSF 12360 | -3/DSF | Additional patrols routed to DSF 12399 | -3/DSF | Discovered new exit (range 21) 12435 | -3/DSF | Identified Spectral Analyzer 12436 | -3/DSF | Identified Exp. Targeting Computer 12608 | -3/DSF | Sterilization system engaged 12628 | -3/DSF | Ambient heat levels rising (+10) 12643 | -3/DSF | Ambient heat levels rising (+10) 12658 | -3/DSF | Ambient heat levels rising (+10) 12667 | -3/DSF | Found Adv. Powered Armor 12668 | -3/DSF | Found Adv. Powered Armor 12671 | -3/DSF | Found Adv. Powered Armor 12672 | -3/DSF | Found Adv. Powered Armor 12673 | -3/DSF | Ambient heat levels rising (+10) 12678 | -3/DSF | Identified Minesniffer Drone Bay 12688 | -3/DSF | Ambient heat levels rising (+10) 12703 | -3/DSF | Ambient heat levels rising (+10) 12718 | -3/DSF | Ambient heat levels rising (+10) 12733 | -3/DSF | Ambient heat levels rising (+10) 12748 | -3/DSF | Ambient heat levels rising (+10) 12763 | -3/DSF | Ambient heat levels rising (+10) 12778 | -3/DSF | Ambient heat levels rising (+10) 12793 | -3/DSF | Ambient heat levels rising (+10) 12808 | -3/DSF | Ambient heat levels rising (+10) 12823 | -3/DSF | Ambient heat levels rising (+10) 12838 | -3/DSF | Ambient heat levels rising (+10) 12853 | -3/DSF | Ambient heat levels rising (+10) 12854 | -3/DSF | Entered Garrison 12897 | -3/Garrison | Spotted B-86 Titan 12994 | -3/Garrison | Crushed by falling debris 12995 | -3/Garrison | System corruption reached 10% 13023 | -3/Garrison | Triggered checkpoint 13036 | -3/Garrison | Triggered checkpoint 13044 | -3/Garrison | Triggered checkpoint 13050 | -3/Garrison | Discovered new exit (range 9) 13054 | -3/Garrison | Found embedded Infiltrators 13064 | -3/Garrison | Attempted to access garrison exit controls, blocked by remote lockdown 13067 | -3/Garrison | Destroyed 10 combat bots 13119 | -3/Garrison | Rescued a captive Derelict 13133 | -3/Garrison | Garrison Relay disabled 13134 | -3/Garrison | Triggered checkpoint 13292 | -3/Garrison | Spotted B-90 Cyclops 13306 | -3/Garrison | Rewired B-86 Titan 13361 | -3/Garrison | Destroyed B-86 Titan 13491 | -3/Garrison | Discovered new exit (range 20) 13500 | -3/Garrison | Triggered checkpoint 13566 | -3/Garrison | Attempted to access garrison exit controls, blocked by remote lockdown 13649 | -3/Garrison | Discovered new exit (range 20) 13659 | -3/Garrison | Learned Research security intel 13674 | -3/Garrison | Garrison Relay disabled 13682 | -3/Garrison | Triggered checkpoint 13733 | -3/Garrison | Entered Research 13733 | -2/Research | Accompanied by 1 ally 13733 | -2/Research | Warlord forces began assault on 0b10 13733 | -2/Research | Evolved 2 slots: Utility x1, Weapon x1 13758 | -2/Research | Distinguished unit "Viscera Detail" dispatched to help 13758 | -2/Research | Distinguished unit "Magnificent Bastards" dispatched to help 13782 | -2/Research | P-80 Master assimilated allied G4-5IU(l) 13843 | -2/Research | Research machine network offline 13953 | -2/Research | Discovered new exit (range 4) 13955 | -2/Research | Identified exit to Testing 13967 | -2/Research | P-80 Master assimilated allied 4T-W8H(b) 14004 | -2/Research | Lost 3 allies 14042 | -2/Research | Lost 5 allies 14077 | -2/Research | Found Prototype Processor 14077 | -2/Research | Identified Exp. Signal Interpreter 14142 | -2/Research | Spotted Executioner 14145 | -2/Research | Spotted Executioner 14165 | -2/Research | Found Prototype Launcher 14165 | -2/Research | Identified Point Singularity Launcher 14167 | -2/Research | Found Point Singularity Launcher 14174 | -2/Research | Found Prototype Device 14174 | -2/Research | Identified Exp. EM Disruption Field 14185 | -2/Research | Borebot progress halted 14203 | -2/Research | Spotted Striker 14205 | -2/Research | Spotted Executioner 14351 | -2/Research | Discovered new exit (range 19) 14361 | -2/Research | Discovered new exit (range 21) 14493 | -2/Research | Discovered new exit (range 14) 14500 | -2/Research | Found Prototype Processor 14500 | -2/Research | Identified Exp. Core Analyzer 14505 | -2/Research | Found Exp. Core Analyzer 14515 | -2/Research | Identified exit to Access 14621 | -2/Research | Met up with Warlord 14776 | -2/Research | Discovered exit to Testing (range 13) 14921 | -2/Research | Warlord destroyed during the assault 14941 | -2/Research | Found Prototype Processor 14941 | -2/Research | Identified Exp. Melee Analysis Suite 14946 | -2/Research | Found Prototype Device 14946 | -2/Research | Identified Adv. Kinecellerator 15020 | -2/Research | Entered Testing 15021 | -2/Testing | Loaded intel: 16 trap records 15083 | -2/Testing | Lost 3 allies 15104 | -2/Testing | Found Prototype Energy Cannon 15104 | -2/Testing | Identified Hpw. Disruptor Cannon 15170 | -2/Testing | Lost 3 allies 15356 | -2/Testing | Spotted Striker 15442 | -2/Testing | Found Prototype Processor 15442 | -2/Testing | Identified Exp. Armor Integrity Analyzer 15504 | -2/Testing | Discovered exit to Access (range 9) 15660 | -2/Testing | Entered Access 15660 | -1/Access | Evolved 2 slots: Utility x2 15681 | -1/Access | Energy Cycler disabled 15832 | -1/Access | Identified exit to Command 16071 | -1/Access | Found Prototype Launcher 16071 | -1/Access | Identified Enh. Gamma Bomb Array 16100 | -1/Access | Destroyed 7 combat bots 16160 | -1/Access | First assault squad dispatched 16382 | -1/Access | System corruption reached 10% 16684 | -1/Access | Garrison activated, responded to threat 17007 | -1/Access | Entered Command 17268 | -1/Command | Spotted Combat Programmer 17278 | -1/Command | Spotted Combat Programmer 17324 | -1/Command | Spotted M Guard 17431 | -1/Command | Spotted Striker 17432 | -1/Command | Spotted Striker 17435 | -1/Command | Spotted Alpha 7 17435 | -1/Command | Destroyed Striker 17435 | -1/Command | Destroyed Striker 17436 | -1/Command | Spotted Alpha 7 17446 | -1/Command | Destroyed Alpha 7 17458 | -1/Command | Destroyed Alpha 7 17462 | -1/Command | Spotted Executioner 17462 | -1/Command | Spotted Executioner 17464 | -1/Command | Destroyed Executioner 17468 | -1/Command | Spotted B-99 Colossus 17477 | -1/Command | Spotted Executioner 17479 | -1/Command | Spotted Executioner 17481 | -1/Command | Destroyed Executioner 17481 | -1/Command | Spotted B-99 Colossus 17484 | -1/Command | Destroyed Executioner 17486 | -1/Command | Destroyed Executioner 17486 | -1/Command | Lost 3 parts (2u1w) 17498 | -1/Command | Destroyed B-99 Colossus 17519 | -1/Command | Destroyed 17 combat bots 17532 | -1/Command | Destroyed B-99 Colossus 17613 | -1/Command | Discovered new exit (range 7) 17738 | -1/Command | Found Unknown Device 17738 | -1/Command | Identified Quantum Capacitor 17753 | -1/Command | Spotted B-99 Colossus 17780 | -1/Command | High security lockdown imminent 17786 | -1/Command | Destroyed B-99 Colossus 17860 | -1/Command | High security lockdown engaged 17904 | -1/Command | Identified exit to Surface 18009 | -1/Command | Destroyed 18 combat bots 18041 | -1/Command | Spotted Striker 18041 | -1/Command | Spotted Executioner 18049 | -1/Command | Destroyed Striker 18050 | -1/Command | Spotted Executioner 18053 | -1/Command | Spotted Investigator 18055 | -1/Command | Scanned by Researcher 18055 | -1/Command | Spotted Executioner 18057 | -1/Command | Destroyed Investigator 18078 | -1/Command | Destroyed 8 combat bots 18113 | -1/Command | Destroyed Executioner 18128 | -1/Command | Core integrity fell below 50% 18134 | *** | Escaped! Last Messages --------------- 18126_ Penetrated by Slug. 18126_ Slug penetrates Wall. 18127_ Penetrated by Slug. 18127_ Slug penetrates Reinforced Barrier. 18127_ Executioner Prototype Reactor blasted off. 18129_ Wall collapses. 18129_ Adv. Powered Armor destroyed. 18129_ Hpw. Accelerated Hardcell Construct/G destroyed. 18129_ Arm. Scrap Engine damaged due to network destabilization (-9). 18129_ Penetrated by Slug. 18130_ ALERT: Heavy assault forces dispatched. 18130_ Penetrated by Slug. 18130_ Slug penetrates Reinforced Barrier. 18130_ Destroyed Prototype Ballistic Gun. 18132_ Executioner knocked back. 18133_ Enh. Hardcell Cannon destroyed. 18134_ N#%FQIU:I39%NBKYOTE4FDZ>O##EXFVZYDHHID [Achievement: Force of Scrap] Map ----- +----------------------------------------------------+ | # # [=## # #????????????????? | | # # ### # / ####????????????????? | | # ## # * != * #???????????????????? | | # # # ### =!==%= #???????????????????? | | ### #### !%*=]%%=* #####????????????????? | | # # %/%=%=%=! #????????????????? | | # # # ## !*!! # % ! ##????????????????? | | # # # ### # # # ###?????????????????? | | # # # #?##?###### ####??????????????????? | | # # # ##"###??????### ##??????????????????? | | # # #????????## %=%%# #??????????????????? | | # # #????????## [%%% #??????????????????? | | # # "+######???## [!! #??????????????????? | | # #???## p!gp ##??????????????????? | | ## #???# %E !^##???????????????????? | | ?## # !!#???## *E % ##??????????????????? | | ??# # ! ##???## % #??????????????????? | | ??# # #???# ^ #??????????????????? | | ??# # ##?#### ##?????????????????? | | ### # "" #??# #?????????????????? | | + # """ #??# #?????????????????? | | + # "R / #??# ^^ ^! ^^ #?????????????????? | | ? + # """ #??# ^ %= ^ #?????????????????? | | ??+ # "" #??# ^ % ^ #?????????????????? | | ??#=[# #??# ^ "" ^ #?????????????????? | | ??#*[# ! #??# ^ "@ ^ #?????????????????? | | ??#%[#"+########??# ^ ^ #?????????????????? | | ??#=%[ ##?????# ^ #?????????????????? | | ??#=[ "#?????# ^^^^^^^^ #?????????????????? | | ### ##?????# #?????????????????? | | "" #??????# #?????????????????? | | "" #??????#########;;###?????????????????? | | "T #???????????????###???????????????????? | | """ ####################??????????????????? | | "" # #??????????????????? | | ### # #??????????????????? | | ??# + """" """" #??????????????????? | | ??# # """" """" #??????????????????? | | ?## ##" !!# """" """" #??????????????????? | | ?#! ##! ## """" """" #??????????????????? | | ?# ###### #??????????????????? | | ?# % #????# #??????????????????? | | ?# [ #????##########+#########??????????????????? | | ###+################# #??????????????????????????? | | % " #??????????????????????????? | | # #####??????????????????????????? | | # #??????????????????????????????? | | # !! #??????????????????????????????? | | # !! " "" #??????????????????????????????? | | # "R"" #??????????????????????????????? | +----------------------------------------------------+ Best States ------------- Heat Dissipation 162 Coolant Potential 80 Energy Generation 91 Energy Capacity 809 Matter Stores 300 Matter Capacity 450 Sight Range 24 Robot Scan Range 20 Terrain Scan Range 20 Terrain Scan Density 210 Jamming Range 14 Power Amplification 40 Additional Mass Support 25 Armor Coverage 1000 Resistance: KI 30 Utility Shielding 90 Evasion (%) 71 Targeting Accuracy 12 Target Analysis 8 Core Analysis 8 Recoil Reduction 5 Kinecelleration 50 Salvage Targeting 3 Offensive Hacking 26 Defensive Hacking 14 Authchip Count 1 Item Schematics ----------------- Huge Storage Unit | -10/Materials | Hacked Hcp. Storage Unit | -10/Materials | Hacked Lrg. Storage Unit | -10/Materials | Hacked Imp. Utility Shielding | -8/Materials | Hacked Assault Drone Bay | -5/Zhirov | Free Exp. Heat Sink | -5/Zhirov | Free Exp. Optical Array | -5/Zhirov | Free Imp. Arc Thrower | -5/Zhirov | Free Exp. Q-thruster | -2/Testing | Archive Hds. Centrium Heavy Treads | -2/Testing | Archive Exp. Thermal Shield | -2/Testing | Archive Robot Schematics ------------------ None Fabricated ------------ Hvy. Armored Exoskeleton | x1 | -5/Factory | Preloaded Repaired ---------- Hacking Suite | 70% | -8/Materials | Corrupted Imp. Treads | 3% | -8/Materials Studied --------- None Alien Tech Used ----------------- Dimensional Node Initializer Integrated Dissipator Transdimensional Reconstructor Achievements -------------- Disruptive Presence Force of Scrap Challenges ------------ None Game ------ Seed ServoChromaticBrace Manual? 0 Play Time 04:13:58 Cumulative 462.2 hours Start 2026.09.11 @ 22:58:28 End 2026.09.12 @ 03:30:09 Sessions 5 Manual Loads 0 Difficulty Rogue Special Mode None Game No. 225 Rogue 225 Adventurer 0 Explorer 0 Win Type 0 Total 16 Types 9/1/1/1/1/0/1/1/0/1 Lore% 71 Gallery% 74 Achievement% 68 Wizard Run 0 Options --------- Layout 1 ASCII 0 Keyboard 0 Movement Mouse Keybinds 0 Fullscreen 1 Font 18/SmallcapsGlow Map View 54x44 Zoom Use 0% Tactical HUD 1 Map Filters NONE Filters NONE Steam 0 RUN: 683f1e59-12de-42fc-9d79-15e1b2df28a7